bitfinex-derivatives/quotes_ETHF0:USTF0_20250906
["timestamp","ask_amount","ask_price","bid_price","bid_amount"]
[1757178787941,2.01625984,4290.6,4290.5,1.0205]
[1757178788943,1.38645984,4290.6,4290.5,0.3887]
[1757178789140,1.38645984,4290.6,4290.5,1.0205]
[1757178789339,1.38645984,4290.6,4290.5,1.6695]
[1757178789541,2.01625984,4290.6,4290.5,1.6695]
[1757178789742,0.99275984,4290.6,4290.5,1.6695]
[1757178789944,0.58435984,4290.6,4290.5,1.6695]
[1757178790241,1.6739,4290.9,4290.8,1.4137]
[1757178790447,2.25987845,4290.9,4290.8,1.4137]
[1757178793347,2.25987845,4290.9,4290.8,1.0205]
[1757178793548,1.63007845,4290.9,4290.6,0.6318]
[1757178793748,0.8021,4290.5,4290.4,0.6318]
[1757178793946,1.4319,4290.5,4290.4,1.0205]
[1757178795152,1.4319,4290.5,4290.4,1.4137]
[1757178795947,0.8021,4290.5,4290.4,1.4137]
[1757178798648,1.4319,4290.5,4290.4,1.4137]
[1757178798846,1.4319,4290.5,4290.4,1.0205]
[1757178799757,1.4319,4290.5,4290.4,1.4281]
[1757178800655,0.6248,4290.7,4290.4,1.4281]
[1757178800857,1.0244,4290.9,4290.5,0.25]
[1757178801157,1.4072,4290.6,4290.5,1.4426]
[1757178801753,0.242,4290.9,4290.6,0.6196]
[1757178802058,0.6341,4290.9,4290.8,1.4426]
[1757178802555,1.2589,4290.9,4290.8,1.4426]
[1757178803161,1.6492,4290.9,4290.8,1.4426]
[1757178805061,2.23541773,4290.9,4290.8,1.4426]
[1757178805454,2.23541773,4290.9,4290.5,0.25]
[1757178805455,2.23541773,4290.9,4290.6,0.6196]
[1757178805760,1.6492,4290.9,4290.6,0.6196]
[1757178805956,0.7824,4290.4,4290.3,3.8274]
[1757178806158,1.4072,4290.4,4290.0,0.6196]
[1757178806358,0.6248,4290.3,4289.8,0.6196]
[1757178806558,1.4072,4290.3,4290.2,0.4154]
[1757178806760,1.4072,4290.3,4290.2,1.035]
[1757178809973,1.4072,4290.3,4289.8,0.6196]
[1757178809974,0.7824,4290.3,4289.8,0.6196]
[1757178810272,0.3921,4289.9,4289.8,1.4426]
[1757178810469,0.6248,4290.2,4290.0,0.25]
[1757178810672,0.3921,4290.1,4290.0,1.6926]
[1757178811873,1.0169,4290.1,4290.0,1.6926]
[1757178812073,1.4072,4290.1,4290.0,1.6926]
[1757178816279,1.4072,4290.1,4290.0,1.4426]
[1757178816679,1.4072,4290.1,4290.0,1.035]
[1757178816883,1.4072,4290.1,4289.7,3.2078]
[1757178816884,0.6248,4289.8,4289.7,3.2078]
[1757178817181,1.4072,4289.8,4289.7,3.2078]
[1757178817481,1.9944161,4289.8,4289.7,3.2078]
[1757178817680,1.9944161,4289.8,4289.6,0.73015]
[1757178817883,1.9944161,4289.7,4289.6,0.73015]
[1757178818878,1.9944161,4289.7,4289.6,1.34975]
[1757178820780,1.9944161,4289.7,4289.6,1.76515]
[1757178821078,1.9944161,4289.7,4289.6,2.17275]
[1757178821283,1.6116161,4289.7,4289.6,2.17275]
[1757178821476,2.2364161,4289.7,4289.6,2.17275]
[1757178821671,2.2364161,4289.7,4289.6,0.73015]
[1757178839807,2.2364161,4289.7,4289.6,1.33745]
[1757178840004,2.2364161,4289.7,4289.6,2.08605]
[1757178841201,7.4744161,4289.7,4289.6,2.08605]
[1757178841895,7.4744161,4289.7,4289.6,1.70655]
[1757178844198,7.4744161,4289.7,4289.6,1.33745]
[1757178844393,7.4744161,4289.7,4289.6,0.73015]
[1757178846004,7.4744161,4289.7,4289.6,1.70655]
[1757178851510,2.2364161,4289.7,4289.6,1.70655]
[1757178853307,0.5872161,4289.7,4289.6,6.31917]
[1757178853518,0.241,4289.7,4289.6,6.31917]
[1757178853705,0.241,4289.9,4289.6,6.31917]
[1757178854015,0.241,4289.9,4289.8,1.3559]
[1757178856206,1.6243,4289.9,4289.8,1.3559]
[1757178856406,1.6243,4289.9,4289.6,0.73015]
[1757178856407,0.8012,4289.7,4289.6,0.73015]
[1757178856613,1.3833,4289.7,4289.6,0.73015]
[1757178857606,1.3833,4289.7,4289.6,1.09925]
[1757178860512,1.3833,4289.7,4289.6,0.73015]
[1757178862518,1.6243,4289.7,4289.6,0.73015]
[1757178864022,5.6243,4289.7,4289.6,0.73015]
[1757178864212,6.86912985,4289.7,4289.6,0.73015]
[1757178865117,5.6243,4289.7,4289.6,0.73015]
[1757178865525,6.2097683,4289.7,4289.6,0.73015]
[1757178866328,7.45459815,4289.7,4289.6,0.73015]
[1757178868431,6.2097683,4289.7,4289.6,0.73015]
[1757178870832,6.2097683,4289.7,4289.6,0.48015]
[1757178871229,2.2097683,4289.7,4289.6,0.48015]
[1757178871423,2.2097683,4289.7,4289.6,1.83295]
[1757178872732,1.8155683,4289.7,4289.6,1.83295]
[1757178874136,2.2174683,4289.7,4289.6,1.83295]
[1757178879742,1.1675683,4289.7,4289.6,1.83295]
[1757178879944,1.4085683,4289.7,4289.6,1.83295]
[1757178882948,1.7788683,4289.7,4289.6,1.83295]
[1757178886350,2.1807683,4289.7,4289.6,1.83295]
[1757178886848,0.8264683,4289.7,4289.6,1.83295]
[1757178889156,1.3948683,4289.7,4289.6,1.83295]
[1757178890355,1.7821683,4289.7,4289.6,1.83295]
[1757178891851,0.8264683,4289.7,4289.6,1.83295]
[1757178892454,1.3948683,4289.7,4289.6,1.83295]
[1757178893157,0.5854683,4289.7,4289.6,1.83295]
[1757178893358,0.8264683,4289.7,4289.6,1.83295]
[1757178897451,1.3948683,4289.7,4289.6,1.83295]
[1757178898453,0.5854683,4289.7,4289.6,1.83295]
[1757178898758,0.8264683,4289.7,4289.6,1.83295]
[1757178899151,1.3948683,4289.7,4289.6,1.83295]
[1757178900858,0.8264683,4289.7,4289.6,1.83295]
[1757178902353,0.5854683,4289.7,4289.6,5.83295]
[1757178902558,0.8094,4290.4,4289.6,5.47887]
[1757178902755,0.8094,4290.4,4290.3,1.0559]
[1757178903553,1.1967,4290.4,4290.3,1.0559]
[1757178904363,4.0109,4291.0,4290.9,1.0559]
[1757178904563,4.3982,4291.0,4290.9,1.0559]
[1757178905060,4.0109,4291.0,4290.9,1.0559]
[1757178906560,0.8031,4291.0,4290.9,1.0559]
[1757178907761,1.1904,4291.0,4290.9,1.0559]
[1757178909559,0.8031,4291.0,4290.9,1.0559]
[1757178910862,0.5684,4291.0,4290.9,1.0559]
[1757178911268,0.804,4291.0,4290.9,1.0559]
[1757178911467,1.1913,4291.0,4290.9,1.0559]
[1757178915161,0.804,4291.0,4290.9,1.0559]
[1757178915559,0.5684,4291.0,4290.9,1.0559]
[1757178915758,0.6401,4291.5,4291.4,0.7707]
[1757178915964,1.2085,4291.5,4291.4,0.7707]
[1757178916869,1.5925,4291.5,4291.4,0.7707]
[1757178922270,1.3082,4290.9,4290.8,3.2078]
[1757178922571,1.3082,4290.9,4289.7,3.2078]
[1757178922572,0.2235,4290.0,4289.7,3.2078]
[1757178922766,1.3082,4289.8,4289.7,3.2078]
[1757178924675,1.3082,4289.8,4289.0,3.2078]
[1757178931881,3.2078,4289.9,4289.0,3.2078]
[1757178931882,1.3082,4289.1,4289.0,3.2078]
[1757178932369,1.3082,4289.1,4289.0,3.5909]
[1757178936678,1.3082,4289.1,4289.0,0.3831]
[1757178936969,1.3082,4289.1,4288.4,3.2078]
[1757178937175,1.5317,4288.5,4288.4,3.5909]
[1757178938575,1.5317,4288.5,4288.4,3.2078]
[1757178939182,1.5317,4288.5,4288.4,4.5594]
[1757178940177,1.5317,4288.5,4288.4,3.9799]
[1757178941076,1.5317,4288.5,4288.4,4.5594]
[1757178941270,1.5317,4288.5,4288.4,3.9799]
[1757178943078,1.5317,4288.5,4288.4,3.2078]
[1757178944676,1.5317,4288.5,4288.1,0.5795]
[1757178946984,0.3705,4288.0,4287.9,1.3516]
[1757178947183,0.9363,4288.0,4287.9,1.3516]
[1757178947390,0.5658,4288.0,4287.9,1.3516]
[1757178948687,0.24,4288.4,4287.9,0.7721]
[1757178948886,0.9443,4288.3,4288.2,0.7363]
[1757178949088,0.9443,4288.3,4288.2,1.3046]
[1757178949489,1.31,4288.3,4288.2,0.7363]
[1757178949690,1.31,4288.3,4288.2,0.3588]
[1757178950090,0.5613,4288.2,4287.8,3.2078]
[1757178950291,1.31,4287.9,4287.8,4.1349]
[1757178950595,1.3798,4287.9,4287.8,3.5666]
[1757178950997,0.6311,4287.9,4287.8,4.5124]
[1757178952289,1.0141,4287.9,4287.8,4.5124]
[1757178953697,0.6311,4287.9,4287.8,4.5124]
[1757178953892,0.0698,4287.9,4287.8,4.5124]
[1757178954196,1.0141,4287.9,4287.8,4.5124]
[1757178954789,1.3798,4287.9,4287.8,4.5124]
[1757178956696,1.3798,4287.9,4287.8,1.3046]
[1757178957294,1.0141,4287.9,4287.8,1.3046]
[1757178958293,0.6311,4287.9,4287.8,1.3046]
[1757178959098,1.3798,4287.9,4287.8,0.3588]
[1757178959600,1.3798,4287.9,4287.8,1.3046]
[1757178960097,1.3798,4287.9,4287.8,0.3588]
[1757178961098,1.3798,4287.9,4287.8,1.3046]
[1757178962692,1.3798,4287.9,4287.8,0.7363]
[1757178964294,1.95851713,4287.9,4287.8,0.7363]
[1757178964596,1.95851713,4287.9,4287.8,0.3588]
[1757178965499,1.95851713,4287.9,4287.8,1.3046]
[1757178965500,1.20981713,4287.9,4287.8,1.3046]
[1757178965692,0.0698,4287.9,4287.8,1.3046]
[1757178969590,0.24,4288.4,4287.8,8.5124]
[1757178969800,3.2078,4288.9,4288.2,0.7363]
[1757178969995,3.2078,4288.9,4288.8,0.2748]
[1757178970200,3.7691,4288.9,4288.8,0.3607]
[1757178970598,3.2078,4288.9,4288.8,0.3607]
[1757178971100,3.7691,4288.9,4288.8,0.3607]
[1757178971397,4.1521,4288.9,4288.8,0.2748]
[1757178971807,4.5178,4288.9,4288.8,0.2748]
[1757178972306,4.5178,4288.9,4288.4,0.239]
[1757178972508,1.5297,4288.5,4288.4,0.3764]
[1757178974107,1.5297,4288.5,4288.4,0.1374]
[1757178974796,1.5297,4288.5,4288.4,0.2748]
[1757178975301,1.164,4288.5,4288.4,0.2748]
[1757178975808,1.5297,4288.5,4288.4,0.2748]
[1757178979810,1.5297,4288.5,4288.4,0.1374]
[1757178980310,1.5297,4288.5,4288.4,0.2929]
[1757178981712,1.5297,4288.5,4288.0,0.239]
[1757178982117,1.5297,4288.5,4288.0,0.65868]
[1757178982723,1.5297,4288.5,4288.4,0.1555]
[1757178983919,1.5297,4288.5,4288.0,0.65868]
[1757178984119,1.5297,4288.5,4288.0,0.41968]
[1757178984319,1.4729,4288.0,4287.9,3.3633]
[1757178984515,1.4729,4288.0,4287.9,3.6023]
[1757178984719,1.4729,4288.0,4287.9,3.7578]
[1757178986010,0.5446,4288.4,4288.3,0.1555]
[1757178986213,0.5446,4288.9,4288.6,0.41962]
[1757178986420,0.8976,4288.9,4288.8,0.311]
[1757178986618,1.247,4288.9,4288.8,0.311]
[1757178987317,1.247,4288.9,4288.7,0.239]
[1757178987617,1.247,4288.7,4288.6,3.2078]
[1757178987818,1.247,4288.7,4288.5,0.239]
[1757178987819,0.2259,4288.5,4288.4,0.239]
[1757178988015,0.9283,4288.5,4288.3,0.239]
[1757178988216,1.247,4288.4,4288.3,0.3945]
[1757178988423,1.247,4288.4,4288.3,3.6023]
[1757178988621,1.247,4288.4,4288.3,3.7578]
[1757178989521,1.247,4288.4,4288.3,3.6023]
[1757178992112,1.247,4288.4,4288.3,3.747]
[1757178993221,1.247,4288.4,4288.3,3.508]
[1757178993420,1.247,4288.4,4288.3,3.747]
[1757178993818,1.247,4288.4,4288.3,3.6023]
[1757178994019,1.247,4288.4,4288.3,3.4468]
[1757178995015,1.247,4288.4,4288.3,3.2078]
[1757178998022,0.5789,4288.0,4287.9,0.2894]
[1757178998325,1.1235,4288.0,4287.9,0.5284]
[1757178998726,1.1235,4288.0,4287.9,0.2894]
[1757178998928,1.4729,4288.0,4287.9,0.2894]
[1757178999225,1.4729,4288.0,4287.9,0.5284]
[1757179001930,1.4729,4288.0,4287.9,0.2894]
[1757179002130,1.4729,4288.0,4287.9,0.5284]
[1757179004623,1.1235,4288.0,4287.9,0.6188]
[1757179004826,0.7705,4288.0,4287.9,0.6188]
[1757179005125,1.1235,4288.0,4287.9,0.5284]
[1757179007729,1.4729,4288.0,4287.9,0.5284]
[1757179008837,1.4729,4288.0,4287.9,0.2894]
[1757179009025,1.4729,4288.0,4287.9,0.5284]
[1757179009636,1.4729,4288.0,4287.9,0.3837]
[1757179009936,1.4729,4288.0,4287.9,0.1447]
[1757179010140,1.4729,4288.0,4287.9,0.3837]
[1757179011240,1.4729,4288.0,4287.9,0.1447]
[1757179011430,1.4729,4288.0,4287.9,0.3837]
[1757179013239,1.4729,4288.0,4287.9,0.507]
[1757179014535,0.5757,4288.4,4288.3,0.66625]
[1757179014743,1.147,4289.0,4288.9,0.2466]
[1757179014933,0.7954,4289.0,4288.9,0.5626]
[1757179015133,0.7992,4289.5,4289.4,0.3236]
[1757179015334,1.1508,4289.5,4289.4,3.4544]
[1757179015531,1.5245,4289.5,4289.4,3.6934]
[1757179016939,1.1508,4289.5,4289.4,3.6934]
[1757179017948,0.5757,4289.9,4289.8,0.2466]
[1757179018246,0.5757,4289.9,4289.8,0.4856]
[1757179018547,0.9273,4289.9,4289.8,0.4856]
[1757179018740,0.9273,4289.9,4289.8,0.5626]
[1757179018946,0.9273,4289.9,4289.8,0.4856]
[1757179019946,0.9273,4289.9,4289.8,0.2466]
[1757179020150,0.9273,4289.9,4289.8,0.4856]
[1757179020639,0.2266,4290.5,4289.9,0.66612]
[1757179020845,0.5757,4290.0,4289.9,3.95092]
[1757179021841,1.1539,4290.5,4290.4,0.66607]
[1757179022043,0.8023,4290.5,4290.4,4.18987]
[1757179022236,0.8023,4290.5,4290.4,4.11287]
[1757179022546,0.5757,4290.5,4290.4,4.18987]
[1757179022747,1.1539,4291.0,4290.9,0.2466]
[1757179023047,1.1539,4291.0,4290.9,0.4856]
[1757179023552,1.5276,4290.5,4290.4,3.2078]
[1757179023735,1.5276,4290.5,4290.4,3.4468]
[1757179024544,1.5276,4290.5,4290.4,3.2078]
[1757179024741,1.5276,4290.5,4290.4,3.4468]
[1757179025049,1.5276,4290.5,4289.9,0.41951]
[1757179025050,1.5276,4290.0,4289.9,3.2078]
[1757179025251,1.5276,4290.0,4289.9,3.4468]
[1757179026145,1.5276,4290.0,4289.9,3.5701]
[1757179027457,1.5276,4290.0,4289.9,3.4468]
[1757179028152,1.5276,4290.0,4289.9,3.5701]
[1757179030152,1.5276,4290.0,4289.9,3.6934]
[1757179035648,1.5276,4290.0,4289.9,0.4856]
[1757179035956,1.5276,4290.0,4289.9,0.3623]
[1757179039557,1.5276,4290.0,4289.4,3.2848]
[1757179039753,1.5165,4289.5,4289.4,3.391]
[1757179039959,1.5165,4289.5,4289.4,3.629]
[1757179042358,1.5165,4289.5,4289.4,3.391]
[1757179042558,1.5165,4289.5,4289.4,3.2994]
[1757179042760,1.5165,4289.5,4289.4,3.5374]
[1757179043350,1.5165,4289.5,4289.4,3.629]
[1757179044157,1.5165,4289.5,4289.4,3.391]
[1757179044360,1.5165,4289.5,4289.4,3.629]
[1757179044560,1.5165,4289.5,4289.4,3.391]
[1757179044760,1.5165,4289.5,4289.4,3.629]
[1757179044957,1.5165,4289.5,4289.4,3.391]
[1757179045162,1.5165,4289.5,4289.4,3.629]
[1757179048366,1.5165,4289.5,4289.4,3.391]
[1757179048568,1.5165,4289.5,4289.4,3.629]
[1757179048767,1.5165,4289.5,4289.4,3.391]
[1757179048967,1.5165,4289.5,4289.4,3.629]
[1757179050066,1.5165,4289.5,4289.4,3.391]
[1757179050370,1.5165,4289.5,4289.4,3.2078]
[1757179050568,0.7372,4288.8,4288.7,3.2078]
[1757179050865,1.2866,4288.8,4288.7,3.6102]
[1757179051063,0.9084,4288.8,4288.7,3.6102]
[1757179052571,1.2866,4288.8,4288.7,3.6102]
[1757179052763,1.2866,4288.8,4288.7,3.528]
[1757179052974,1.2866,4288.8,4288.7,3.4458]
[1757179054377,1.2866,4288.8,4288.7,3.528]
[1757179056571,1.2866,4288.8,4288.7,3.4458]
[1757179056773,1.2866,4288.8,4288.7,0.238]
[1757179056969,0.2299,4288.5,4288.3,33.586]
[1757179057272,1.2866,4288.4,4288.3,33.586]
[1757179057473,1.2866,4288.4,4288.3,33.824]
[1757179059371,1.2866,4288.4,4288.3,33.586]
[1757179059572,1.2866,4288.4,4288.3,33.824]
[1757179059771,0.9084,4288.4,4288.3,33.824]
[1757179060167,0.5494,4288.4,4288.3,33.8754]
[1757179063368,0.5494,4288.4,4288.3,33.824]
[1757179065771,1.2866,4288.3,4288.2,3.2078]
[1757179065970,1.2866,4288.3,4288.2,3.4458]
[1757179066180,1.2866,4288.3,4288.2,3.528]
[1757179067578,0.9084,4288.3,4288.2,3.6102]
[1757179068077,1.2866,4288.3,4288.2,3.6102]
[1757179068979,1.2866,4288.3,4288.2,3.4458]
[1757179069773,1.2866,4288.3,4288.2,3.2078]
[1757179070079,1.2866,4288.3,4288.2,0.238]
[1757179070473,0.2076,4288.0,4287.7,3.2078]
[1757179070779,0.7064,4287.9,4287.8,0.2985]
[1757179070979,1.2319,4287.9,4287.8,0.2985]
[1757179071180,1.2319,4287.9,4287.8,0.0605]
[1757179071481,1.2319,4287.9,4287.8,0.359]
[1757179072067,1.2319,4287.9,4287.8,0.121]
[1757179072575,1.2319,4287.9,4287.8,0.359]
[1757179072775,1.2319,4287.9,4287.8,0.2985]
[1757179072973,0.7064,4287.9,4287.8,0.238]
[1757179073173,1.2319,4287.9,4287.8,0.238]
[1757179073368,0.7064,4287.9,4287.8,0.238]
[1757179073571,1.2319,4287.9,4287.8,0.238]
[1757179075183,0.5255,4287.8,4287.7,3.2078]
[1757179075489,0.5255,4287.8,4287.7,3.4458]
[1757179075490,1.2319,4287.8,4287.7,3.4458]
[1757179075671,1.2319,4287.8,4287.7,3.5063]
[1757179076282,1.2319,4287.8,4287.7,3.2078]
[1757179076675,1.2319,4287.8,4287.7,0.238]
[1757179077079,0.2076,4287.5,4287.1,3.2078]
[1757179077276,1.2319,4287.2,4287.1,3.2078]
[1757179077479,1.2319,4287.2,4287.1,3.4458]
[1757179077980,1.2319,4287.2,4287.1,3.2078]
[1757179078182,1.2319,4287.2,4287.1,3.4458]
[1757179078481,1.2319,4287.2,4287.1,3.2078]
[1757179078682,1.2319,4287.2,4287.1,3.4458]
[1757179079573,1.2319,4287.2,4287.1,3.2078]
[1757179079776,5.2319,4287.2,4287.1,3.2078]
[1757179079983,1.4395,4286.5,4286.4,3.2683]
[1757179080273,1.4395,4286.5,4286.4,3.5063]
[1757179081090,1.4395,4286.5,4286.4,3.5668]
[1757179081091,1.0857,4286.5,4286.4,3.5668]
[1757179083091,1.0857,4286.5,4286.4,3.3288]
[1757179083284,1.0857,4286.5,4286.4,3.5668]
[1757179083789,1.4395,4286.5,4286.4,3.5668]
[1757179085894,1.4395,4286.5,4286.4,3.3288]
[1757179086185,1.0857,4286.5,4286.4,3.5668]
[1757179087995,0.7331,4286.5,4286.4,3.6046]
[1757179088686,0.7331,4286.5,4286.4,3.5668]
[1757179089084,1.0857,4286.5,4286.4,3.5668]
[1757179089489,1.0857,4286.5,4286.4,3.3288]
[1757179089788,1.4395,4286.5,4286.4,3.5668]
[1757179089994,1.4395,4286.5,4286.4,3.5063]
[1757179090292,1.4395,4286.5,4286.4,3.5668]
[1757179092887,1.4395,4286.5,4286.4,3.3288]
[1757179093191,1.4395,4286.5,4286.4,3.5668]
[1757179093890,1.4395,4286.5,4286.4,3.4458]
[1757179095092,1.4395,4286.5,4285.8,36.7928]
[1757179095292,0.914,4286.0,4285.9,0.0605]
[1757179095487,1.4395,4286.0,4285.9,0.2985]
[1757179096088,1.4395,4286.0,4285.9,0.0605]
[1757179096294,1.4395,4286.0,4285.9,0.238]
[1757179099193,1.4395,4286.0,4285.9,0.2985]
[1757179099392,1.4395,4286.0,4285.9,0.3284]
[1757179101692,1.4395,4286.0,4285.9,0.2985]
[1757179102500,1.4395,4286.0,4285.8,36.7928]
[1757179102701,1.4654,4286.0,4285.9,0.238]
[1757179103391,0.914,4286.0,4285.9,0.238]
[1757179103599,1.4654,4286.0,4285.9,0.238]
[1757179104396,0.914,4286.0,4285.8,3.2078]
[1757179104601,1.4654,4286.0,4285.9,0.238]
[1757179106301,1.2272,4285.9,4285.8,3.2078]
[1757179106501,1.2272,4285.9,4285.8,3.4757]
[1757179114210,1.2272,4285.9,4285.8,3.2377]
[1757179114409,1.2272,4285.9,4285.8,3.4757]
[1757179114905,1.2272,4285.9,4285.8,3.2377]
[1757179115110,1.2272,4285.9,4285.8,3.4757]
[1757179116809,1.2272,4285.9,4285.8,3.2377]
[1757179117013,1.2272,4285.9,4285.8,3.4656]
[1757179117198,1.2272,4285.9,4285.8,3.4854]
[1757179121109,1.2272,4285.9,4285.8,3.4656]
[1757179122213,1.2272,4285.9,4285.8,0.2578]
[1757179123010,1.2272,4285.9,4285.1,3.62779]
[1757179123206,1.0853,4285.5,4285.4,0.0396]
[1757179123407,0.7536,4285.5,4285.4,0.29]
[1757179126912,0.7536,4285.5,4285.4,0.2776]
[1757179127714,1.0853,4285.5,4285.4,0.2776]
[1757179129017,1.0853,4285.5,4285.4,0.0396]
[1757179129218,1.0853,4285.5,4285.4,0.2776]
[1757179132713,1.4147,4285.5,4285.4,0.2776]
[1757179136033,1.4147,4285.5,4285.4,0.0396]
[1757179136333,1.4147,4285.5,4285.4,0.2776]
[1757179139036,1.4147,4285.5,4285.4,0.2578]
[1757179142642,1.4147,4285.5,4285.4,0.238]
[1757179143145,0.8633,4285.5,4285.2,2.09256242]
[1757179143332,1.162,4285.4,4285.3,0.237]
[1757179147442,0.8326,4285.4,4285.3,0.65697]
[1757179147646,0.5094,4285.9,4285.8,0.41992]
[1757179147847,0.5094,4285.9,4285.8,3.4448]
[1757179148043,0.5094,4285.9,4285.8,9.53736242]
[1757179148542,0.5094,4285.9,4285.8,7.4448]
[1757179148747,0.8326,4285.9,4285.8,7.4448]
[1757179149048,1.162,4285.9,4285.8,3.2078]
[1757179149244,1.162,4285.9,4285.8,3.4448]
[1757179151043,1.162,4285.9,4285.8,3.2078]
[1757179151349,1.162,4285.9,4285.8,3.4448]
[1757179151550,0.5094,4285.9,4285.8,3.4448]
[1757179151851,1.162,4285.9,4285.8,3.2078]
[1757179152053,1.162,4285.9,4285.8,3.4448]
[1757179156747,1.162,4285.9,4285.8,3.2078]
[1757179156944,0.5094,4285.1,4285.0,2.09256242]
[1757179157148,1.3736,4285.0,4284.8,0.5253]
[1757179157352,1.3736,4285.0,4284.7,3.2078]
[1757179157547,0.5094,4284.9,4284.8,0.237]
[1757179157752,1.162,4284.9,4284.8,0.237]
[1757179158152,1.162,4284.9,4284.8,0.5765]
[1757179158457,1.162,4284.9,4284.8,1.1018]
[1757179158657,1.162,4284.9,4284.8,0.8648]
[1757179158861,1.162,4284.9,4284.8,0.5765]
[1757179160461,1.162,4284.9,4284.6,0.5086]
[1757179160660,1.162,4284.9,4284.7,0.237]
[1757179161354,1.162,4284.9,4284.8,0.3355]
[1757179161555,1.162,4284.9,4284.8,1.4314]
[1757179163463,1.162,4284.9,4284.8,1.1944]
[1757179163659,1.162,4284.9,4284.8,1.4314]
[1757179171870,1.162,4284.9,4284.8,1.1944]
[1757179172070,1.162,4284.9,4284.8,1.4314]
[1757179172770,0.3232,4284.9,4284.8,1.4314]
[1757179173471,0.833,4284.9,4284.8,1.4314]
[1757179176472,0.5098,4285.3,4284.8,1.4314]
[1757179176676,1.1855,4285.3,4285.2,0.6858]
[1757179176875,1.1855,4285.3,4285.2,1.1944]
[1757179178262,1.1855,4285.3,4284.9,0.237]
[1757179178467,1.1855,4285.3,4285.2,0.8441]
[1757179180079,1.1855,4285.3,4285.2,0.3355]
[1757179180482,1.1855,4285.3,4285.2,1.1944]
[1757179180881,1.1855,4285.3,4285.2,0.8441]
[1757179182575,1.1855,4285.3,4285.2,1.1944]
[1757179184980,1.1855,4285.3,4285.2,0.3355]
[1757179185183,1.1855,4285.3,4284.5,0.2137]
[1757179185184,1.1855,4285.3,4285.0,0.5086]
[1757179185372,1.1855,4285.3,4284.7,0.5086]
[1757179189389,0.6685,4284.8,4284.4,0.4983]
[1757179189582,0.6685,4284.4,4284.3,1.1731]
[1757179189886,1.1523,4284.4,4284.3,1.1731]
[1757179190589,1.1523,4284.4,4284.2,0.237]
[1757179191289,0.4838,4284.3,4284.2,0.7353]
[1757179191481,1.1523,4284.3,4284.2,0.8245]
[1757179192081,1.1523,4284.3,4284.2,0.3262]
[1757179192277,0.203,4284.0,4283.9,34.1023]
[1757179192479,0.6868,4284.0,4283.9,0.4983]
[1757179192679,1.3553,4284.0,4283.9,0.4983]
[1757179192875,1.3553,4284.0,4283.9,0.8245]
[1757179194487,1.3553,4284.0,4283.5,0.50507361]
[1757179194681,1.1523,4283.6,4283.5,0.83127361]
[1757179194877,3.2078,4283.8,4283.5,1.38627361]
[1757179195080,3.2078,4283.8,4283.7,1.1731]
[1757179195690,4.0339,4283.8,4283.7,1.1731]
[1757179195993,1.1523,4283.8,4283.7,1.1731]
[1757179197888,1.1523,4283.8,4283.7,0.8245]
[1757179198092,1.1523,4283.8,4283.5,0.00677361]
[1757179198894,1.1523,4283.8,4283.6,0.4983]
[1757179199599,1.1523,4283.8,4283.5,0.00677361]
[1757179200995,4.3601,4283.8,4283.5,0.00677361]
[1757179201891,3.2078,4283.8,4283.7,1.1731]
[1757179202099,4.3601,4283.8,4283.7,1.1731]
[1757179203497,3.2078,4283.8,4283.7,1.1731]
[1757179204591,3.2078,4284.3,4283.7,0.6748]
[1757179204792,0.8261,4283.9,4283.8,1.1731]
[1757179205696,1.1523,4283.9,4283.8,1.1731]
[1757179206696,1.1523,4283.9,4283.5,0.50507361]
[1757179206897,1.1523,4283.9,4283.5,0.00677361]
[1757179207100,1.1523,4283.9,4283.6,0.4983]
[1757179208404,1.1523,4283.9,4283.5,0.50507361]
[1757179209511,1.1523,4283.9,4283.6,0.4983]
[1757179210008,1.1523,4283.9,4283.8,0.3262]
[1757179210210,1.1523,4283.9,4283.8,0.8245]
[1757179210508,1.1523,4283.9,4283.8,1.1731]
[1757179211506,0.8261,4283.9,4283.8,1.1731]
[1757179212005,0.3423,4283.9,4283.8,1.1731]
[1757179213110,0.4838,4284.2,4284.0,0.2064]
[1757179213404,0.8261,4284.2,4284.1,1.1731]
[1757179214000,3.2078,4284.3,4284.2,0.4983]
[1757179214309,4.0339,4284.3,4284.2,1.1731]
[1757179214704,3.2078,4284.3,4284.2,1.1731]
[1757179215117,0.4838,4284.9,4284.2,1.1731]
[1757179215407,3.4108,4285.0,4284.9,0.4983]
[1757179215408,3.2078,4285.0,4284.9,0.4983]
[1757179215711,4.0339,4285.5,4285.4,1.1731]
[1757179216110,4.3601,4285.5,4285.4,1.1731]
[1757179216511,4.5631,4285.5,4285.4,1.1731]
[1757179217014,4.5631,4285.5,4285.4,0.3262]
[1757179217312,4.5631,4285.5,4284.9,0.237]
[1757179217313,4.5631,4285.5,4285.1,0.4983]
[1757179217516,4.5631,4285.5,4284.9,0.237]
[1757179217701,0.8715,4285.5,4284.7,0.4983]
[1757179217905,0.8261,4284.9,4284.8,1.1731]
[1757179218113,1.1523,4284.9,4284.8,1.1731]
[1757179218314,1.1523,4284.9,4284.8,1.4101]
[1757179218507,1.1523,4284.9,4284.8,1.1731]
[1757179218713,1.1523,4284.9,4284.8,1.4101]
[1757179219412,1.1523,4284.9,4284.8,1.1731]
[1757179219612,1.1523,4284.9,4284.8,1.4101]